fUSD/lending_fUSD_20250326
["ID","MTS","AMOUNT","RATE_DAILY","PERIOD"]
[356699556,1742989838239,-8385.858494,0.00027692,2]
[356699557,1742989838250,-391.38267744,0.00027692,2]
[356699558,1742989838266,-9198.4377232,0.00027692,2]
[356699559,1742989838277,-437.78214631,0.00027692,2]
[356699560,1742989838286,-181.37,0.00027723,2]
[356699561,1742989838295,-86.88619481,0.00027791,2]
[356699563,1742989839869,-276.792,0.000245,2]
[356699564,1742989839880,-96.82380519,0.00027791,2]
[356699565,1742989839889,-200.0,0.00027801,2]
[356699566,1742989839898,-701.52633703,0.00027803,2]
[356699567,1742989839974,-1338.47366297,0.00027803,2]
[356699568,1742989839984,-158.23002272,0.0002783,60]
[356699569,1742989839997,-1341.76997728,0.0002783,60]
[356699570,1742989840006,-514.69038633,0.00027953,2]
[356699571,1742989840134,-457.99961367,0.00027953,2]
[356699572,1742989840144,-275.37,0.00028,2]
[356699573,1742989840154,-1000.0,0.0002812,2]
[356699574,1742989840165,-184.99,0.00028339,2]
[356699575,1742989840175,-3127.07,0.00028549,2]
[356699576,1742989840184,-150.0,0.00028549,2]
[356699577,1742989840194,-665.21,0.00028549,2]
[356699578,1742989840203,-167.1,0.00028549,2]
[356699579,1742989840213,-1150.25,0.00028549,2]
[356699580,1742989840223,-1000.0,0.00028633,2]
[356699581,1742989840232,-150.0,0.00028909,2]
[356699582,1742989840241,-350.0,0.00029,2]
[356699583,1742989840250,-159.75148,0.0002908,43]
[356699584,1742989840260,-223.17,0.0002921,120]
[356699585,1742989840269,-2000.0,0.00029222,120]
[356699586,1742989840279,-501.88090667,0.0002972,5]
[356699587,1742989840289,-151.39289262,0.0002972,5]
[356699588,1742989840299,-503.8475448,0.0002972,5]
[356699589,1742989840309,-155.40491186,0.0002972,5]
[356699590,1742989840318,-500.0,0.0002997,2]
[356699591,1742989840327,-3345.64928475,0.0003,2]
[356699592,1742989840337,-972.69,0.00030216,2]
[356699593,1742989840346,-150.0,0.00030279,2]
[356699594,1742989840356,-233.70416564,0.00030374,2]
[356699595,1742989840378,-66.29583436,0.00030374,2]
[356699596,1742989840387,-8873.17665933,0.0003068,2]
[356699597,1742989840403,-947.01167179,0.0003068,2]
[356699598,1742989840414,-643.65507974,0.0003068,2]
[356699599,1742989840430,-434.54746564,0.0003068,2]
[356699669,1742989842825,-678.15966603,0.0003068,2]
[356699670,1742989844279,-814.82264092,0.0003068,2]
[356699671,1742989844296,-802.72095819,0.0003068,2]
[356699672,1742989845698,-1064.8319108,0.0003068,2]
[356699673,1742989845710,-837.43582365,0.0003068,2]
[356699674,1742989845753,-2804.14886447,0.0003068,2]
[356699675,1742989845912,-468.68885309,0.0003068,2]
[356699676,1742989845966,-1189.62794171,0.0003068,2]
[356699677,1742989845976,-2843.2959643,0.000308,2]
[356699678,1742989846020,-1956.83197334,0.000308,2]
[356699679,1742989846030,-161.3413666,0.000308,2]
[356699680,1742989846039,-153.00182237,0.00030873,5]
[356699681,1742989846048,-337.2788447,0.00030889,2]
[356699682,1742989846058,-2684.75439944,0.0003089,2]
[356699683,1742989846069,-738.81570275,0.0003089,2]
[356699684,1742989846082,-1023.05,0.0003089,2]
[356699685,1742989846099,-31368.81271271,0.0003089,2]
[356699686,1742989846109,-243551.47878451,0.000309,2]
[356699687,1742989846119,-400.0,0.00031,2]
[356699688,1742989846129,-159.75147,0.0003158,48]
[356699689,1742989846138,-1000.0,0.00031635,2]
[356699690,1742989846147,-150.0,0.00031649,2]
[356699691,1742989846158,-95199.56869777,0.000317,2]
[356699692,1742989846167,-300.0,0.00031744,2]
[356699693,1742989846177,-150.1,0.0003198,2]
[356699694,1742989846188,-143261.73126,0.0003199,2]
[356699695,1742989846197,-44554.6523748,0.0003199,2]
[356699696,1742989846207,-150.1,0.0003199,2]
[356699697,1742989846217,-150.1,0.0003199,2]
[356699698,1742989846227,-150.1,0.0003199,2]
[356699699,1742989846237,-132362.78777359,0.00032,2]
[356699700,1742989846247,-112227.5520849,0.00032,2]
[356699701,1742989846256,-47484.48197845,0.00032,2]
[356699702,1742989846266,-4800.12793764,0.00032024,2]
[356699703,1742989846275,-150.1,0.00032252,2]
[356699704,1742989846284,-1863.51081233,0.00032262,2]
[356699705,1742989846294,-47599.75,0.00032262,2]
[356699706,1742989846303,-972.69,0.0003248,2]
[356699707,1742989846312,-150.0,0.0003255,2]
[356699708,1742989846322,-17907.7164074,0.00032551,2]
[356699709,1742989846331,-14851.5507916,0.00032551,2]
[356699710,1742989846340,-151.0,0.00032561,7]
[356699711,1742989846350,-17907.7164074,0.00032562,2]
[356699712,1742989846360,-29703.1015832,0.00032562,2]
[356699713,1742989846369,-744.21442372,0.00032562,2]
[356699714,1742989846378,-150.1,0.00032562,2]
[356699715,1742989846387,-53723.1492223,0.00032571,2]
[356699716,1742989846397,-44554.6523748,0.00032571,2]
[356699717,1742989846406,-151.0,0.00032572,7]
[356699718,1742989846415,-150.1,0.00032741,2]
[356699719,1742989846424,-47599.75,0.00032751,2]
[356699720,1742989846434,-47599.75,0.0003276,2]
[356699721,1742989846443,-150.1,0.0003276,2]
[356699722,1742989846453,-47599.75,0.0003277,2]
[356699723,1742989846462,-1500.0,0.000328,11]
[356699724,1742989846472,-17907.7164074,0.00032856,2]
[356699725,1742989846481,-14851.5507916,0.00032866,2]
[356699726,1742989846490,-500.0,0.00032876,120]
[356699727,1742989846499,-787.09,0.00032876,90]
[356699728,1742989846509,-787.09,0.00032876,90]
[356699729,1742989846518,-787.09,0.00032876,90]
[356699730,1742989846527,-787.09,0.00032876,90]
[356699731,1742989846536,-787.09,0.00032876,90]
[356699732,1742989846546,-787.09,0.00032876,90]
[356699733,1742989846555,-787.09,0.00032876,90]
[356699734,1742989846564,-787.09,0.00032876,90]
[356699736,1742989846574,-787.09,0.00032876,90]
[356699737,1742989846583,-787.09,0.00032876,90]
[356699739,1742989846592,-787.09,0.00032876,90]
[356699741,1742989846601,-787.09,0.00032876,90]
[356699753,1742989846691,-787.09,0.00032876,90]
[356699755,1742989846718,-787.09,0.00032876,90]
[356699757,1742989846727,-787.09,0.00032876,90]
[356699759,1742989846736,-787.09,0.00032876,90]
[356699761,1742989846745,-787.09,0.00032876,90]
[356699763,1742989846754,-787.09,0.00032876,90]
[356699765,1742989846763,-787.09,0.00032876,90]
[356699767,1742989846771,-787.09,0.00032876,90]
[356699769,1742989846780,-787.09,0.00032876,90]
[356699771,1742989846789,-787.09,0.00032876,90]
[356699773,1742989846800,-787.09,0.00032876,90]
[356699774,1742989846809,-787.22536588,0.00032876,90]
[356699775,1742989846818,-151.0,0.00032876,7]
[356699776,1742989846827,-3000.0,0.000329,12]
[356699777,1742989846836,-450.0,0.00033,2]
[356699778,1742989846846,-203.18,0.00033018,2]
[356699779,1742989846855,-150.1,0.0003304,2]
[356699780,1742989846864,-53723.1492223,0.00033051,2]
[356699781,1742989846874,-44554.6523748,0.00033051,2]
[356699782,1742989846884,-150.1,0.00033051,2]
[356699783,1742989846893,-150.1,0.00033051,2]
[356699784,1742989846903,-71630.8656298,0.0003306,2]
[356699785,1742989846913,-103960.855541,0.0003306,2]
[356699786,1742989846922,-150.1,0.0003306,2]
[356699787,1742989846932,-188.277952,0.00033061,7]
[356699788,1742989846942,-1684.0,0.0003307,5]
[356699789,1742989846951,-406.67256974,0.0003307,2]
[356699790,1742989846961,-197268.84915736,0.0003307,2]
[356699791,1742989846969,-150.0,0.00033073,5]
[356699792,1742989846979,-500.0,0.0003315,120]
[356699793,1742989846988,-4800.12793764,0.00033248,2]
[356699794,1742989846997,-500.0,0.00033424,120]
[356699795,1742989847007,-250.0,0.00033621,5]
[356699796,1742989847016,-500.0,0.00033698,120]
[356699797,1742989847025,-150.1,0.00033952,2]
[356699798,1742989847035,-14851.5507916,0.00033962,2]
[356699799,1742989847044,-500.0,0.00033972,120]
[356699800,1742989847053,-1282.0,0.00034161,2]
[356699801,1742989847062,-1421.0,0.00034161,2]
[356699802,1742989847072,-1273.0,0.00034161,2]
[356699803,1742989847084,-786.0,0.00034161,2]
[356699804,1742989847095,-907.0,0.00034161,2]
[356699805,1742989847108,-4087.0,0.00034161,2]
[356699806,1742989847118,-1431.0,0.00034161,2]
[356699807,1742989847128,-542.0,0.00034161,2]
[356699808,1742989847137,-151.0,0.00034161,2]
[356699809,1742989847147,-3943.0,0.00034161,2]
[356699810,1742989847156,-1116.0,0.00034161,2]
[356699811,1742989847166,-350.0,0.00034168,5]
[356699812,1742989847176,-506.05491754,0.00034246,120]
[356699813,1742989847185,-14851.5507916,0.0003442,2]
[356699814,1742989847194,-4800.12793764,0.00034472,2]
[356699815,1742989847204,-161.3413666,0.00034575,2]
[356699816,1742989847214,-200.0,0.00034594,2]
[356699817,1742989847223,-450.0,0.00034716,5]
[356699818,1742989847233,-972.69,0.00034744,2]
[356699819,1742989847242,-500.0,0.00035,2]
[356699820,1742989847254,-1000.0,0.0003515,2]
[356699821,1742989847264,-150.69976469,0.00035264,5]
[356699822,1742989847273,-1000.0,0.00035449,2]
[356699823,1742989847282,-150.0,0.00035615,2]
[356699824,1742989847292,-1500.0,0.00035616,30]
[356699825,1742989847301,-1500.0,0.00035616,30]
[356699826,1742989847311,-1500.0,0.00035616,30]
[356699827,1742989847320,-1500.0,0.00035616,30]
[356699828,1742989847329,-425.34489088,0.00035616,30]
[356699829,1742989847338,-161.78,0.00035616,2]
[356699830,1742989847348,-4800.12793764,0.00035696,2]
[356699831,1742989847357,-159.24,0.00036027,2]
[356699832,1742989847366,-150.0,0.00036316,2]
[356699833,1742989847375,-500.0,0.00036411,2]
[356699834,1742989847385,-14851.5507916,0.00036437,3]
[356699835,1742989847395,-150.0,0.00036533,2]
[356699836,1742989847404,-150.1,0.0003659,2]
[356699837,1742989847414,-47599.75,0.000366,3]
[356699838,1742989847424,-234.94221065,0.0003663,30]
[356699839,1742989847433,-234.94221065,0.00036767,30]
[356699840,1742989847443,-1000.0,0.00036768,7]
[356699841,1742989847452,-150.0,0.0003679,2]
[356699842,1742989847461,-150.0,0.00036826,2]
[356699843,1742989847470,-150.0,0.00036838,2]
[356699844,1742989847479,-29703.1015832,0.00036861,3]
[356699845,1742989847489,-4500.0,0.000369,13]
[356699846,1742989847498,-150.0,0.00036909,2]
[356699847,1742989847508,-150.0,0.0003692,2]
[356699848,1742989847517,-4800.12793764,0.00036921,2]
[356699849,1742989847526,-150.0,0.00036931,2]
[356699850,1742989847535,-234.94221065,0.00036932,30]
[356699851,1742989847544,-1000.0,0.00036958,7]
[356699852,1742989847554,-14851.5507916,0.00036968,3]
[356699853,1742989847563,-15000.0,0.00036988,2]
[356699854,1742989847572,-550.0,0.00037,2]
[356699855,1742989847581,-972.69,0.00037008,2]
[356699856,1742989847590,-150.0,0.0003704,2]
[356699857,1742989847600,-156.03830451,0.00037041,30]
[356699858,1742989847609,-150.0,0.00037044,2]
[356699859,1742989847619,-234.94221065,0.00037068,30]
[356699860,1742989847628,-14851.5507916,0.00037083,3]
[356699861,1742989847637,-150.0,0.00037112,2]
[356699862,1742989847646,-710.65576956,0.00037112,2]
[356699863,1742989847655,-150.0,0.00037112,2]
[356699864,1742989847665,-150.0,0.00037117,2]
[356699865,1742989847674,-166.15,0.00037117,120]
[356699866,1742989847683,-150.0,0.00037122,2]
[356699867,1742989847692,-150.1,0.00037151,2]
[356699868,1742989847701,-150.0,0.00037159,2]
[356699869,1742989847710,-1000.0,0.0003716,7]
[356699870,1742989847720,-810.459,0.00037161,2]
[356699871,1742989847729,-407.256,0.00037161,2]
[356699872,1742989847739,-907.0,0.00037161,2]
[356699873,1742989847749,-3678.957,0.00037161,2]
[356699874,1742989847758,-151.0,0.00037161,2]
[356699875,1742989847767,-3247.285,0.00037161,2]
[356699876,1742989847776,-1116.0,0.00037161,2]
[356699877,1742989847786,-1122.9333817,0.00037181,4]
[356699878,1742989847794,-14851.5507916,0.00037184,3]
[356699879,1742989847804,-150.0,0.00037196,2]
[356699880,1742989847813,-234.94221065,0.00037233,30]
[356699881,1742989847822,-1000.0,0.00037256,7]
[356699882,1742989847831,-150.0,0.00037289,2]
[356699883,1742989847841,-150.0,0.00037302,2]
[356699884,1742989847850,-150.0,0.00037331,2]
[356699885,1742989847859,-150.0,0.00037337,2]
[356699886,1742989847869,-150.0,0.00037347,2]
[356699887,1742989847878,-234.94221065,0.0003737,30]
[356699888,1742989847887,-150.0,0.00037372,2]
[356699889,1742989847896,-1000.0,0.00037375,7]
[356699890,1742989847905,-150.0,0.00037386,2]
[356699891,1742989847915,-150.0,0.0003739,2]
[356699892,1742989847924,-150.0,0.00037415,2]
[356699893,1742989847933,-1000.0,0.00037433,7]
[356699894,1742989847943,-150.0,0.00037447,2]
[356699895,1742989847952,-156.03830451,0.00037452,30]
[356699896,1742989847961,-150.0,0.00037458,2]
[356699897,1742989847970,-150.0,0.00037466,2]
[356699898,1742989847979,-150.0,0.00037475,2]
[356699899,1742989847989,-150.0,0.00037478,2]
[356699900,1742989847997,-1000.0,0.00037482,7]
[356699901,1742989848007,-150.0,0.00037503,2]
[356699902,1742989848017,-234.94221065,0.00037507,30]
[356699903,1742989848027,-150.0,0.00037524,2]
[356699904,1742989848037,-150.0,0.00037534,2]
[356699905,1742989848046,-150.0,0.00037536,2]
[356699906,1742989848056,-150.0,0.00037538,2]
[356699907,1742989848065,-150.0,0.00037545,2]
[356699908,1742989848075,-150.0,0.00037547,2]
[356699909,1742989848090,-150.0,0.00037552,2]
[356699910,1742989848099,-150.0,0.00037559,2]
[356699911,1742989848109,-150.0,0.00037567,2]
[356699912,1742989848119,-150.0,0.00037568,2]
[356699913,1742989848130,-1000.0,0.00037568,7]
[356699914,1742989848139,-150.0,0.00037586,2]
[356699915,1742989848148,-150.0,0.00037592,2]
[356699916,1742989848158,-161.78,0.00037595,2]
[356699917,1742989848167,-150.0,0.00037596,2]
[356699918,1742989848177,-150.0,0.00037606,2]
[356699919,1742989848186,-150.0,0.00037616,2]
[356699920,1742989848196,-150.0,0.00037617,2]
[356699921,1742989848206,-150.0,0.00037618,2]
[356699922,1742989848215,-150.0,0.00037636,2]
[356699923,1742989848225,-14851.5507916,0.00037637,3]
[356699924,1742989848235,-1000.0,0.00037646,7]
[356699925,1742989848245,-900.0,0.00037647,14]
[356699926,1742989848254,-900.0,0.00037647,14]
[356699927,1742989848264,-900.0,0.00037647,14]
[356699928,1742989848275,-900.0,0.00037647,14]
[356699929,1742989848284,-900.0,0.00037647,14]
[356699930,1742989848294,-900.0,0.00037647,14]
[356699931,1742989848303,-900.0,0.00037647,14]
[356699932,1742989848313,-900.0,0.00037647,14]
[356699933,1742989848322,-900.0,0.00037647,14]
[356699934,1742989848332,-927.7295486,0.00037647,14]
[356699935,1742989848341,-900.0,0.00037647,14]
[356699936,1742989848351,-900.0,0.00037647,14]
[356699937,1742989848360,-900.0,0.00037647,14]
[356699938,1742989848369,-450.85125967,0.00037647,14]
[356699939,1742989848379,-1000.0,0.00037656,7]
[356699940,1742989848387,-150.0,0.00037659,7]
[356699941,1742989848396,-234.94221065,0.00037671,30]
[356699942,1742989848406,-150.0,0.00037672,2]
[356699943,1742989848510,-150.0,0.00037675,2]
[356699944,1742989848520,-150.0,0.00037682,2]
[356699945,1742989848530,-150.0,0.00037685,2]
[356699946,1742989848540,-150.0,0.00037688,2]
[356699947,1742989848549,-150.0,0.00037697,2]
[356699948,1742989848560,-150.0,0.00037704,2]
[356699949,1742989848570,-1000.0,0.0003772,7]
[356699950,1742989848580,-150.0,0.00037723,2]
[356699951,1742989848590,-150.0,0.00037726,2]
[356699952,1742989848599,-150.0,0.00037729,2]
[356699953,1742989848608,-150.0,0.0003775,2]
[356699954,1742989848618,-150.0,0.00037762,2]
[356699955,1742989848627,-150.0,0.00037774,2]
[356699956,1742989848636,-150.0,0.00037787,2]
[356699957,1742989848646,-150.0,0.00037789,2]
[356699958,1742989848655,-150.0,0.00037795,2]
[356699959,1742989848664,-1000.0,0.00037798,7]
[356699960,1742989848674,-150.0,0.00037799,2]
[356699961,1742989848683,-234.94221065,0.00037808,30]
[356699962,1742989848693,-150.0,0.0003781,2]
[356699963,1742989848704,-150.0,0.00037811,2]
[356699964,1742989848713,-1000.0,0.00037811,7]
[356699965,1742989848723,-150.0,0.00037836,2]
[356699966,1742989848733,-196.18871547,0.00037839,2]
[356699967,1742989848742,-152.66,0.00037846,2]
[356699968,1742989848752,-167.03,0.00037846,2]
[356699969,1742989848762,-154.86,0.00037846,2]
[356699970,1742989848771,-356.1,0.00037846,2]
[356699971,1742989848781,-154.46,0.00037846,2]
[356699972,1742989848790,-454.98,0.00037846,2]
[356699973,1742989848799,-150.0,0.00037848,2]
[356699974,1742989848809,-150.0,0.00037851,7]
[356699975,1742989848818,-150.0,0.00037853,2]
[356699976,1742989848828,-150.0,0.00037854,2]
[356699977,1742989848837,-150.0,0.00037869,2]
[356699978,1742989848847,-14851.5507916,0.0003788,3]
[356699979,1742989848858,-150.0,0.00037888,2]
[356699980,1742989848867,-150.0,0.00037893,2]
[356699981,1742989848877,-150.0,0.00037903,7]
[356699982,1742989848886,-150.0,0.0003792,2]
[356699983,1742989848895,-151.76873033,0.00037935,2]
[356699984,1742989848905,-150.0,0.00037944,2]
[356699985,1742989848914,-150.0,0.00037944,2]
[356699986,1742989848923,-234.94221065,0.00037945,30]
[356699987,1742989848933,-500.0,0.00037965,120]
[356699988,1742989848943,-500.0,0.00037965,120]
[356699989,1742989848953,-500.0,0.00037965,120]
[356699990,1742989848964,-500.0,0.00037965,120]
[356699991,1742989848973,-500.0,0.00037965,120]
[356699992,1742989848982,-150.0,0.00037965,30]
[356699993,1742989848991,-150.0,0.00037966,7]
[356699994,1742989849001,-150.0,0.00037982,2]
[356699995,1742989849011,-1000.0,0.00037987,7]
[356699996,1742989849020,-150.0,0.0003799,2]
[356699997,1742989849031,-150.0,0.0003799,2]
[356699998,1742989849041,-1000.0,0.00037997,7]
[356699999,1742989849051,-2137.57,0.00038,30]
[356700000,1742989849062,-164.0,0.00038,2]
[356700001,1742989849072,-150.0,0.00038055,2]
[356700002,1742989849085,-1000.0,0.00038063,7]
[356700003,1742989849096,-150.0,0.00038067,2]
[356700004,1742989849106,-150.0,0.00038078,2]
[356700005,1742989849116,-150.0,0.00038079,2]
[356700006,1742989849127,-150.0,0.00038085,2]
[356700007,1742989849137,-150.0,0.0003809,2]
[356700008,1742989849147,-150.0,0.00038102,30]
[356700009,1742989849157,-234.94221065,0.0003811,30]
[356700010,1742989849166,-150.0,0.00038122,2]
[356700011,1742989849175,-150.0,0.00038123,2]
[356700012,1742989849185,-150.0,0.0003813,2]
[356700013,1742989849195,-198.32985114,0.00038138,7]
[356700014,1742989849205,-150.0,0.00038138,7]
[356700015,1742989849214,-1000.0,0.0003814,7]
[356700016,1742989849224,-150.0,0.0003814,2]
[356700017,1742989849233,-4800.12793764,0.00038145,2]
[356700018,1742989849244,-150.0,0.00038165,7]
[356700019,1742989849254,-181.5438865,0.00038167,7]
[356700020,1742989849263,-1000.0,0.00038168,7]
[356700021,1742989849273,-150.0,0.00038169,2]
[356700022,1742989849282,-150.0,0.00038173,2]
[356700023,1742989849292,-596.92958045,0.00038181,2]
[356700024,1742989849302,-162.91207766,0.00038181,11]
[356700025,1742989849312,-1000.0,0.00038189,7]
[356700026,1742989849323,-203.57520752,0.00038193,7]
[356700027,1742989849332,-150.0,0.00038197,2]
[356700028,1742989849342,-1000.0,0.00038198,7]
[356700029,1742989849352,-150.0,0.00038211,2]
[356700030,1742989849363,-150.0,0.00038213,2]
[356700031,1742989849374,-150.0,0.00038219,2]
[356700032,1742989849384,-150.0,0.00038225,2]
[356700033,1742989849393,-150.0,0.00038232,7]
[356700034,1742989849403,-150.0,0.00038239,30]
[356700035,1742989849413,-234.94221065,0.00038247,30]
[356700036,1742989849423,-150.1,0.00038247,2]
[356700037,1742989849433,-150.0,0.00038248,2]
[356700038,1742989849444,-150.0,0.00038251,2]
[356700039,1742989849455,-1000.0,0.00038257,7]
[356700040,1742989849464,-1000.0,0.00038262,7]
[356700041,1742989849473,-150.0,0.00038263,2]
[356700042,1742989849483,-1000.0,0.00038263,7]
[356700043,1742989849492,-500.0,0.00038265,120]
[356700044,1742989849502,-150.0,0.0003827,2]
[356700045,1742989849512,-150.0,0.00038292,2]
[356700046,1742989849522,-1000.0,0.00038296,7]
[356700047,1742989849532,-150.0,0.00038311,2]
[356700048,1742989849542,-1000.0,0.00038319,7]
[356700049,1742989849551,-1000.0,0.00038322,7]
[356700050,1742989849561,-150.0,0.00038327,2]
[356700051,1742989849571,-161.3413666,0.0003835,2]
[356700052,1742989849581,-628.06952981,0.00038354,7]
[356700053,1742989849591,-150.0,0.00038356,2]
[356700054,1742989849602,-500.0,0.00038356,120]
[356700055,1742989849612,-150.0,0.00038357,2]
[356700056,1742989849622,-150.0,0.00038361,2]
[356700057,1742989849632,-5393.6927955,0.00038369,2]
[356700058,1742989849641,-2940.7463748,0.00038369,2]
[356700059,1742989849651,-500.0,0.00038371,120]
[356700060,1742989849660,-500.0,0.00038371,120]
[356700061,1742989849670,-500.0,0.00038373,5]
[356700062,1742989849680,-150.0,0.00038376,30]
[356700063,1742989849690,-10000.0,0.00038379,14]
[356700064,1742989849701,-164.89644097,0.00038381,14]
[356700065,1742989849711,-500.0,0.00038431,120]
[356700066,1742989849721,-150.1,0.00038432,2]
[356700067,1742989849731,-150.1,0.00038433,2]
[356700068,1742989849741,-127999.0,0.00038442,3]
[356700069,1742989849751,-175.22364802,0.00038442,120]
[356700070,1742989849761,-80000.0,0.00038443,5]
[356700071,1742989849770,-502.33359425,0.00038473,5]
[356700072,1742989849780,-150.0,0.00038473,5]
[356700073,1742989849789,-169.07907148,0.00038473,5]
[356700074,1742989849799,-150.0,0.00038513,30]
[356700075,1742989849808,-150.0,0.00038555,5]
[356700076,1742989849817,-20000.0,0.00038611,2]
[356700077,1742989849827,-164.0,0.0003863,14]
[356700078,1742989849837,-261.2661533,0.0003865,30]
[356700079,1742989849846,-1000.0,0.00038665,2]
[356700080,1742989849856,-6010.0355773,0.00038674,2]
[356700081,1742989849867,-3276.7884651,0.00038674,2]
[356700082,1742989849877,-150.0,0.00038719,5]
[356700083,1742989849887,-150.0,0.00038801,5]
[356700084,1742989849896,-2624.0,0.00038849,120]
[356700085,1742989849905,-167.0,0.00038849,120]
[356700086,1742989849915,-150.1,0.0003887,2]
[356700087,1742989849924,-79248.71,0.0003888,4]
[356700088,1742989849934,-150.0,0.00038884,5]
[356700089,1742989849943,-3777.793,0.00038888,30]
[356700090,1742989849953,-57424.52884166,0.000389,7]
[356700091,1742989849963,-6000.0,0.000389,14]
[356700092,1742989849972,-205.0,0.0003899,2]
[356700093,1742989849981,-468.50742831,0.00039,120]
[356700094,1742989849991,-600.0,0.00039,2]
[356700095,1742989850000,-150.0,0.00039048,5]
[356700096,1742989850010,-150.0,0.0003913,5]
[356700097,1742989850020,-150.0,0.00039212,5]
[356700098,1742989850030,-152.0,0.00039251,5]
[356700099,1742989850041,-972.69,0.00039272,2]
[356700100,1742989850051,-150.0,0.00039295,5]
[356700101,1742989850060,-4800.12793764,0.00039369,2]
[356700102,1742989850070,-150.1,0.0003938,2]
[356700103,1742989850079,-80000.0,0.0003939,12]
[356700104,1742989850090,-6626.3783591,0.00039413,2]
[356700105,1742989850099,-3612.8305553,0.00039413,2]
[356700106,1742989850108,-150.1,0.0003943,2]
[356700107,1742989850117,-50000.0,0.0003944,6]
[356700108,1742989850127,-34375.0,0.00039463,7]
[356700109,1742989850136,-596.9295804,0.00039468,2]
[356700110,1742989850229,-150.1,0.00039485,2]
[356700111,1742989850239,-150.0,0.00039494,2]
[356700112,1742989850248,-80000.0,0.00039495,5]
[356700113,1742989850258,-2851.95,0.000395,2]
[356700114,1742989850267,-13438.87,0.000395,2]
[356700115,1742989850276,-300.0,0.000395,2]
[356700116,1742989850286,-300.0,0.000395,2]
[356700117,1742989850295,-300.0,0.000395,2]
[356700118,1742989850304,-591.40477576,0.000395,2]
[356700119,1742989850314,-150.0,0.00039541,5]
[356700120,1742989850324,-161.78,0.00039574,2]
[356700121,1742989850334,-4823.0,0.00039589,120]
[356700122,1742989850343,-50000.0,0.0003962,7]
[356700123,1742989850353,-1064.0,0.00039701,5]
[356700124,1742989850362,-500.0,0.00039726,120]
[356700125,1742989850372,-150.0,0.00039788,5]
[356700126,1742989850381,-150.1,0.0003982,2]
[356700127,1742989850391,-50000.0,0.0003983,4]
[356700128,1742989850401,-500.0,0.00039853,3]
[356700129,1742989850413,-500.0,0.00039853,3]
[356700130,1742989850422,-500.0,0.00039853,3]
[356700131,1742989850432,-500.0,0.00039853,3]
[356700132,1742989850442,-500.0,0.00039853,3]
[356700133,1742989850452,-500.0,0.00039853,3]
[356700134,1742989850461,-500.0,0.00039853,3]
[356700135,1742989850471,-321.6697548,0.00039853,3]
[356700136,1742989850481,-150.0,0.0003987,5]
[356700137,1742989850491,-665.21,0.00039968,2]
[356700138,1742989850501,-7242.7211408,0.00039973,2]
[356700139,1742989850510,-3948.8726456,0.00039973,2]
[356700140,1742989850519,-205.0,0.0003999,2]
[356700141,1742989850529,-150.1,0.0003999,2]
[356700142,1742989850538,-195.4867205,0.0004,120]
[356700143,1742989850547,-586.81942571,0.0004,2]
[356700144,1742989850557,-276.12967728,0.0004,30]
[356700145,1742989850566,-235.0572081,0.0004,30]
[356700146,1742989850574,-377.01724242,0.0004,2]
[356700147,1742989850583,-8270.55230489,0.0004,120]
[356700148,1742989850593,-211.30564682,0.0004,2]
[356700149,1742989850602,-480.62036426,0.0004,120]